[Event "Masters Tournament (MTO)"]
[Site "Biel, Switzerland"]
[Date "2026.07.21"]
[Round "8.30"]
[White "Kunz, Andre"]
[Black "Celis, Joel"]
[Result "1-0"]
[TimeControl "100+30+30sec/move"]
[WhiteTitle "-"]
[BlackTitle "-"]
[WhiteFideId "24623652"]
[BlackFideId "15400212"]
[WhiteElo "2116"]
[BlackElo "1981"]

1. e4 {[%clk 01:40:58]} {[%emt 00:00:02]} e5 {[%clk 01:31:27]} {[%emt
00:09:34]} 2. Nf3 {[%clk 01:38:40]} {[%emt 00:02:47]} Nc6 {[%clk 01:29:01]}
{[%emt 00:02:56]} 3. Bc4 {[%clk 01:39:06]} {[%emt 00:00:04]} Bc5 {[%clk
01:29:15]} {[%emt 00:00:16]} 4. c3 {[%clk 01:38:03]} {[%emt 00:01:34]} Nf6
{[%clk 01:29:27]} {[%emt 00:00:16]} 5. d3 {[%clk 01:37:40]} {[%emt 00:00:54]}
a6 {[%clk 01:29:19]} {[%emt 00:00:38]} 6. O-O {[%clk 01:37:02]} {[%emt
00:01:09]} Ba7 {[%clk 01:29:16]} {[%emt 00:00:33]} 7. Re1 {[%clk 01:35:21]}
{[%emt 00:02:11]} d6 {[%clk 01:26:32]} {[%emt 00:03:13]} 8. Bb3 {[%clk
01:35:38]} {[%emt 00:00:13]} h6 {[%clk 01:25:44]} {[%emt 00:01:17]} 9. Nbd2
{[%clk 01:32:56]} {[%emt 00:03:13]} g5 {[%clk 01:21:26]} {[%emt 00:04:48]} 10.
Nf1 {[%clk 01:29:48]} {[%emt 00:03:38]} g4 {[%clk 01:15:27]} {[%emt 00:06:29]}
11. N3d2 {[%emt 00:06:09]} h5 {[%clk 01:02:37]} {[%emt 00:07:36]} 12. Nc4
{[%emt 00:14:26]} b5 {[%clk 00:46:04]} {[%emt 00:04:45]} 13. Nce3 {[%emt
00:02:56]} h4 {[%emt 00:05:10]} 14. Nd5 {[%clk 01:21:48]} {[%emt 00:05:22]} g3
{[%clk 00:37:03]} {[%emt 00:04:00]} 15. Be3 {[%clk 01:16:24]} {[%emt 00:05:54]}
gxf2+ {[%clk 00:33:44]} {[%emt 00:03:49]} 16. Bxf2 {[%clk 01:16:52]} {[%emt
00:00:02]} Bxf2+ {[%clk 00:33:44]} {[%emt 00:00:30]} 17. Kxf2 {[%clk 01:17:20]}
{[%emt 00:00:02]} Rh6 {[%clk 00:21:36]} {[%emt 00:12:37]} 18. Nfe3 {[%clk
01:15:35]} {[%emt 00:02:15]} Ne7 {[%clk 00:19:37]} {[%emt 00:02:28]} 19. Nxf6+
{[%clk 01:11:00]} {[%emt 00:05:06]} Rxf6+ {[%clk 00:19:37]} {[%emt 00:00:30]}
20. Kg1 {[%clk 01:11:17]} {[%emt 00:00:13]} Be6 {[%clk 00:14:28]} {[%emt
00:05:39]} 21. Qh5 {[%clk 01:10:12]} {[%emt 00:01:35]} Ng6 {[%clk 00:11:25]}
{[%emt 00:03:29]} 22. Bxe6 {[%clk 01:02:47]} {[%emt 00:07:59]} Rxe6 {[%clk
00:11:10]} {[%emt 00:00:45]} 23. Rf1 {[%clk 01:03:04]} {[%emt 00:00:13]} Nf4
{[%clk 00:10:44]} {[%emt 00:00:56]} 24. Qh7 {[%clk 00:57:57]} {[%emt 00:05:37]}
c6 {[%clk 00:03:42]} {[%emt 00:07:32]} 25. Qg8+ {[%clk 00:55:31]} {[%emt
00:02:56]} Kd7 {[%clk 00:03:38]} {[%emt 00:00:34]} 26. Qxf7+ {[%clk 00:55:58]}
{[%emt 00:00:03]} Re7 {[%clk 00:03:57]} {[%emt 00:00:11]} 27. Qf5+ {[%clk
00:55:15]} {[%emt 00:01:13]} Kc7 {[%clk 00:03:59]} {[%emt 00:00:27]} 28. d4
{[%clk 00:52:43]} {[%emt 00:03:03]} Qh8 {[%clk 00:03:09]} {[%emt 00:01:17]} 29.
Kh1 {[%clk 00:48:32]} {[%emt 00:04:44]} Rf8 {[%clk 00:02:21]} {[%emt 00:01:18]}
30. Qg4 {[%clk 00:48:15]} {[%emt 00:00:45]} Rg7 {[%clk 00:02:16]} {[%emt
00:00:37]} 31. Qf3 {[%clk 00:48:02]} {[%emt 00:00:42]} Rfg8 {[%clk 00:02:02]}
{[%emt 00:00:45]} 32. dxe5 {[%clk 00:47:51]} {[%emt 00:00:41]} dxe5 {[%clk
00:02:05]} {[%emt 00:00:27]} 33. Rad1 {[%emt 00:01:55]} Qh7 {[%clk 00:01:47]}
{[%emt 00:00:03]} 34. Rd2 {[%clk 00:46:43]} {[%emt 00:00:58]} Rg3 {[%clk
00:01:44]} {[%emt 00:00:33]} 35. Qf2 {[%clk 00:47:06]} {[%emt 00:00:07]} h3
{[%clk 00:01:03]} {[%emt 00:01:11]} 36. Rfd1 {[%clk 00:43:37]} {[%emt
00:03:59]} hxg2+ {[%clk 00:01:21]} {[%emt 00:00:12]} 37. Nxg2 {[%clk 00:44:05]}
{[%emt 00:00:01]} Qxe4 {[%clk 00:00:48]} {[%emt 00:01:04]} 38. Qa7+ {[%clk
00:43:44]} {[%emt 00:00:51]} Kc8 {[%clk 00:01:10]} {[%emt 00:00:08]} 39. Qxa6+
{[%clk 00:42:01]} {[%emt 00:02:13]} Kb8 {[%clk 00:01:01]} {[%emt 00:00:39]} 40.
Qb6+ {[%clk 00:42:20]} {[%emt 00:00:11]} Kc8 {[%clk 00:01:10]} {[%emt
00:00:21]} 41. Rd8+ {[%clk 00:42:41]} {[%emt 00:00:08]} 1-0

[Event "Masters Tournament (MTO)"]
[Site "Biel, Switzerland"]
[Date "2026.07.21"]
[Round "8.31"]
[White "Kwiatkowski, Jakub"]
[Black "Aryan, Mehta"]
[Result "1/2-1/2"]
[TimeControl "100+30+30sec/move"]
[WhiteTitle "-"]
[BlackTitle "-"]
[WhiteFideId "1348736"]
[BlackFideId "33329664"]
[WhiteElo "2107"]
[BlackElo "1979"]

1. e4 {[%clk 01:40:57]} {[%emt 00:00:02]} c5 {[%clk 01:40:52]} {[%emt
00:00:08]} 2. Nf3 {[%clk 01:41:19]} {[%emt 00:00:10]} d6 {[%clk 01:41:17]}
{[%emt 00:00:03]} 3. Bb5+ {[%clk 01:41:08]} {[%emt 00:00:41]} Bd7 {[%clk
01:41:38]} {[%emt 00:00:09]} 4. Bxd7+ {[%clk 01:41:30]} {[%emt 00:00:08]} Qxd7
{[%clk 01:42:02]} {[%emt 00:00:06]} 5. c4 {[%clk 01:41:50]} {[%emt 00:00:11]}
Nc6 {[%clk 01:42:25]} {[%emt 00:00:06]} 6. O-O {[%clk 01:41:24]} {[%emt
00:00:55]} g6 {[%clk 01:42:49]} {[%emt 00:00:06]} 7. d4 {[%clk 01:41:47]}
{[%emt 00:00:08]} cxd4 {[%clk 01:43:14]} {[%emt 00:00:05]} 8. Nxd4 {[%clk
01:42:07]} {[%emt 00:00:10]} Bg7 {[%clk 01:43:38]} {[%emt 00:00:05]} 9. Be3
{[%clk 01:42:28]} {[%emt 00:00:11]} Nf6 {[%clk 01:44:01]} {[%emt 00:00:06]} 10.
f3 {[%clk 01:42:50]} {[%emt 00:00:09]} O-O {[%clk 01:44:23]} {[%emt 00:00:07]}
11. Nc3 {[%clk 01:43:12]} {[%emt 00:00:08]} e6 {[%clk 01:44:46]} {[%emt
00:00:06]} 12. Nde2 {[%clk 01:32:31]} {[%emt 00:11:12]} Rac8 {[%clk 01:41:46]}
{[%emt 00:03:30]} 13. Rc1 {[%clk 01:28:32]} {[%emt 00:04:30]} Rfd8 {[%clk
01:39:16]} {[%emt 00:02:59]} 14. Nf4 {[%clk 01:25:18]} {[%emt 00:03:44]} a6
{[%clk 01:21:45]} {[%emt 00:18:01]} 15. Qd2 {[%clk 01:10:23]} {[%emt 00:15:25]}
Ne5 {[%clk 01:14:31]} {[%emt 00:07:43]} 16. b3 {[%clk 01:07:19]} {[%emt
00:03:35]} b5 {[%clk 01:13:45]} {[%emt 00:01:16]} 17. cxb5 {[%clk 01:04:13]}
{[%emt 00:03:36]} axb5 {[%clk 01:14:10]} {[%emt 00:00:05]} 18. Rfd1 {[%clk
01:03:59]} {[%emt 00:00:44]} Qb7 {[%clk 01:06:08]} {[%emt 00:08:32]} 19. Nd3
{[%clk 00:45:10]} {[%emt 00:19:18]} Nfd7 {[%clk 00:55:54]} {[%emt 00:10:44]} 20.
Nxe5 {[%clk 00:36:33]} {[%emt 00:09:08]} Nxe5 {[%clk 00:54:01]} {[%emt
00:02:23]} 21. Bd4 {[%clk 00:36:12]} {[%emt 00:00:51]} b4 {[%clk 00:51:38]}
{[%emt 00:02:54]} 22. Ne2 {[%clk 00:35:13]} {[%emt 00:01:28]} h5 {[%clk
00:41:55]} {[%emt 00:10:12]} 23. Qb2 {[%clk 00:19:14]} {[%emt 00:16:29]} Rxc1
{[%clk 00:34:10]} {[%emt 00:08:15]} 24. Nxc1 {[%clk 00:17:51]} {[%emt
00:01:54]} f5 {[%clk 00:25:11]} {[%emt 00:09:28]} 25. exf5 {[%clk 00:16:07]}
{[%emt 00:02:14]} gxf5 {[%clk 00:24:52]} {[%emt 00:00:48]} 26. Ne2 {[%clk
00:16:25]} {[%emt 00:00:13]} h4 {[%clk 00:18:17]} {[%emt 00:07:05]} 27. Nf4
{[%clk 00:14:12]} {[%emt 00:02:42]} Qf7 {[%clk 00:18:19]} {[%emt 00:00:28]} 28.
Qf2 {[%clk 00:14:32]} {[%emt 00:00:10]} Bf6 {[%clk 00:16:38]} {[%emt 00:02:11]}
29. Ba1 {[%clk 00:06:39]} {[%emt 00:08:24]} Bg5 {[%clk 00:08:28]} {[%emt
00:08:40]} 30. Nh3 {[%clk 00:05:38]} {[%emt 00:01:30]} Be7 {[%clk 00:08:16]}
{[%emt 00:00:41]} 31. Nf4 {[%clk 00:03:32]} {[%emt 00:02:37]} Bg5 {[%clk
00:08:39]} {[%emt 00:00:07]} 32. Nh3 {[%clk 00:03:52]} {[%emt 00:00:11]} Be7
{[%clk 00:09:02]} {[%emt 00:00:05]} 33. Nf4 {[%emt 00:00:52]} 1/2-1/2

[Event "Masters Tournament (MTO)"]
[Site "Biel, Switzerland"]
[Date "2026.07.21"]
[Round "8.32"]
[White "Papaux, Jeremie"]
[Black "Von Burg, Carl Alexander"]
[Result "1-0"]
[TimeControl "100+30+30sec/move"]
[WhiteTitle "-"]
[BlackTitle "-"]
[WhiteFideId "1340867"]
[BlackFideId "1352458"]
[WhiteElo "2102"]
[BlackElo "1947"]

1. d4 {[%clk 01:40:49]} {[%emt 00:00:10]} d5 {[%clk 01:40:50]} {[%emt
00:00:10]} 2. c4 {[%clk 01:41:14]} {[%emt 00:00:07]} c6 {[%clk 01:41:17]}
{[%emt 00:00:02]} 3. Nf3 {[%clk 01:41:39]} {[%emt 00:00:05]} Nf6 {[%clk
01:41:42]} {[%emt 00:00:05]} 4. Nc3 {[%clk 01:42:02]} {[%emt 00:00:07]} e6
{[%clk 01:42:05]} {[%emt 00:00:06]} 5. Bg5 {[%clk 01:42:25]} {[%emt 00:00:07]}
Nbd7 {[%clk 01:42:29]} {[%emt 00:00:07]} 6. e3 {[%clk 01:42:41]} {[%emt
00:00:14]} Qa5 {[%clk 01:42:52]} {[%emt 00:00:07]} 7. cxd5 {[%clk 01:43:07]}
{[%emt 00:00:04]} Nxd5 {[%clk 01:42:08]} {[%emt 00:01:13]} 8. Qd2 {[%clk
01:43:25]} {[%emt 00:00:13]} Bb4 {[%clk 01:42:07]} {[%emt 00:00:30]} 9. Rc1
{[%clk 01:43:49]} {[%emt 00:00:06]} Nxc3 {[%clk 01:40:59]} {[%emt 00:01:38]} 10.
bxc3 {[%clk 01:44:09]} {[%emt 00:00:10]} Ba3 {[%clk 01:41:22]} {[%emt
00:00:07]} 11. Rb1 {[%clk 01:43:11]} {[%emt 00:01:29]} b6 {[%clk 01:41:36]}
{[%emt 00:00:15]} 12. Bd3 {[%clk 01:35:33]} {[%emt 00:08:08]} Ba6 {[%clk
01:41:50]} {[%emt 00:00:16]} 13. O-O {[%clk 01:29:35]} {[%emt 00:06:28]} Bxd3
{[%clk 01:41:26]} {[%emt 00:00:54]} 14. Qxd3 {[%clk 01:29:54]} {[%emt
00:00:11]} O-O {[%clk 01:40:41]} {[%emt 00:01:14]} 15. Bf4 {[%clk 01:25:22]}
{[%emt 00:05:02]} Rfe8 {[%clk 01:38:51]} {[%emt 00:02:20]} 16. c4 {[%clk
01:22:56]} {[%emt 00:02:57]} Bf8 {[%clk 01:38:48]} {[%emt 00:00:33]} 17. e4
{[%clk 01:19:01]} {[%emt 00:04:25]} c5 {[%clk 01:31:03]} {[%emt 00:08:15]} 18.
Bd2 {[%clk 01:15:04]} {[%emt 00:04:27]} Qa6 {[%clk 01:26:25]} {[%emt 00:05:08]}
19. d5 {[%clk 01:15:28]} {[%emt 00:00:07]} exd5 {[%clk 01:24:59]} {[%emt
00:01:56]} 20. exd5 {[%clk 01:15:53]} {[%emt 00:00:05]} Qxa2 {[%clk 01:16:54]}
21. Ra1 {[%clk 01:12:35]} {[%emt 00:12:21]} Qb2 {[%clk 01:16:07]} {[%emt
00:01:17]} 22. Bc3 {[%clk 01:12:34]} {[%emt 00:00:32]} Qe2 {[%clk 01:14:48]}
{[%emt 00:01:48]} 23. Qf5 {[%clk 01:12:59]} {[%emt 00:00:06]} g6 {[%clk
00:52:01]} {[%emt 00:23:16]} 24. Qxd7 {[%clk 01:08:23]} {[%emt 00:05:07]} Qxc4
{[%clk 00:52:10]} {[%emt 00:00:21]} 25. Ng5 {[%clk 01:01:39]} {[%emt 00:07:14]}
Re7 {[%clk 00:41:29]} {[%emt 00:11:08]} 26. Qc6 {[%clk 00:59:31]} {[%emt
00:02:41]} 1-0

[Event "Masters Tournament (MTO)"]
[Site "Biel, Switzerland"]
[Date "2026.07.21"]
[Round "8.33"]
[White "Yang, Sung-Jui"]
[Black "Bucher, Dominic"]
[Result "1-0"]
[TimeControl "100+30+30sec/move"]
[WhiteTitle "-"]
[BlackTitle "-"]
[WhiteFideId "16301048"]
[BlackFideId "1353144"]
[WhiteElo "1935"]
[BlackElo "2078"]

1. d4 {[%clk 01:35:49]} {[%emt 00:05:11]} d5 {[%clk 01:40:49]} {[%emt
00:00:12]} 2. Nf3 {[%clk 01:36:14]} {[%emt 00:00:05]} Nf6 {[%clk 01:41:06]}
{[%emt 00:00:13]} 3. c4 {[%clk 01:36:39]} {[%emt 00:00:05]} c6 {[%clk
01:41:21]} {[%emt 00:00:15]} 4. Nc3 {[%clk 01:37:03]} {[%emt 00:00:07]} e6
{[%clk 01:41:36]} {[%emt 00:00:15]} 5. Bg5 {[%clk 01:37:17]} {[%emt 00:00:15]}
h6 {[%clk 01:41:55]} {[%emt 00:00:12]} 6. Bxf6 {[%clk 01:37:40]} {[%emt
00:00:08]} Qxf6 {[%clk 01:42:11]} {[%emt 00:00:13]} 7. Qb3 {[%clk 01:38:03]}
{[%emt 00:00:07]} Nd7 {[%clk 01:41:09]} {[%emt 00:01:33]} 8. e4 {[%clk
01:38:21]} {[%emt 00:00:11]} dxe4 {[%clk 01:37:27]} {[%emt 00:04:12]} 9. Nxe4
{[%clk 01:38:41]} {[%emt 00:00:10]} Qg6 {[%clk 01:37:42]} {[%emt 00:00:15]} 10.
Ng3 {[%clk 01:33:55]} {[%emt 00:05:15]} c5 {[%clk 01:18:06]} {[%emt 00:20:07]}
11. Bd3 {[%clk 01:33:07]} {[%emt 00:01:18]} Qf6 {[%clk 01:18:19]} {[%emt
00:00:17]} 12. Ne4 {[%clk 01:13:19]} {[%emt 00:20:18]} Qe7 {[%clk 01:16:27]}
{[%emt 00:02:23]} 13. d5 {[%clk 00:45:07]} {[%emt 00:28:41]} exd5 {[%clk
01:14:29]} {[%emt 00:02:28]} 14. cxd5 {[%clk 00:45:23]} {[%emt 00:00:15]} Nf6
{[%clk 00:49:48]} {[%emt 00:25:10]} 15. O-O {[%clk 00:36:37]} {[%emt 00:09:17]}
Nxe4 {[%clk 00:46:52]} {[%emt 00:03:26]} 16. Rfe1 {[%clk 00:36:42]} {[%emt
00:00:25]} f5 {[%clk 00:40:35]} {[%emt 00:06:47]} 17. Nd2 {[%clk 00:35:44]}
{[%emt 00:01:27]} Kd8 {[%clk 00:39:57]} {[%emt 00:01:09]} 18. Bxe4 {[%clk
00:28:22]} {[%emt 00:07:52]} fxe4 {[%clk 00:39:48]} {[%emt 00:00:39]} 19. Nxe4
{[%clk 00:28:40]} {[%emt 00:00:12]} b6 {[%clk 00:33:49]} {[%emt 00:06:28]} 20.
d6 {[%clk 00:28:27]} {[%emt 00:00:44]} Qe6 {[%clk 00:33:10]} {[%emt 00:01:09]}
21. Qf3 {[%clk 00:23:51]} {[%emt 00:05:05]} Bb7 {[%clk 00:25:51]} {[%emt
00:07:50]} 22. Qf4 {[%clk 00:17:59]} {[%emt 00:06:22]} Bxe4 {[%clk 00:14:01]}
{[%emt 00:12:20]} 23. Rxe4 {[%clk 00:18:19]} {[%emt 00:00:10]} Qxd6 {[%clk
00:12:02]} {[%emt 00:02:29]} 24. Qf3 {[%clk 00:18:48]} Kc7 {[%clk 00:11:58]}
{[%emt 00:00:34]} 25. Rd1 {[%clk 00:18:31]} {[%emt 00:00:46]} Qg6 {[%clk
00:08:08]} {[%emt 00:04:20]} 26. Rg4 {[%clk 00:14:33]} {[%emt 00:04:28]} Qe8
{[%clk 00:08:23]} {[%emt 00:00:16]} 27. Re4 {[%clk 00:10:40]} {[%emt 00:04:23]}
Qc8 {[%clk 00:01:51]} {[%emt 00:07:02]} 28. Qf7+ {[%clk 00:10:39]} {[%emt
00:00:30]} Kc6 {[%clk 00:02:16]} {[%emt 00:00:06]} 29. a4 {[%clk 00:04:34]}
{[%emt 00:06:34]} Bd6 {[%clk 00:01:46]} {[%emt 00:01:00]} 30. Qd5+ {[%clk
00:04:47]} {[%emt 00:00:17]} Kc7 {[%clk 00:02:10]} {[%emt 00:00:06]} 31. Qxd6+
{[%clk 00:05:09]} {[%emt 00:00:10]} Kb7 {[%clk 00:02:34]} {[%emt 00:00:07]} 32.
Qd5+ {[%clk 00:03:56]} {[%emt 00:01:42]} Kb8 {[%clk 00:02:20]} {[%emt
00:00:45]} 33. Re7 {[%clk 00:03:54]} {[%emt 00:00:31]} 1-0

[Event "Masters Tournament (MTO)"]
[Site "Biel, Switzerland"]
[Date "2026.07.21"]
[Round "8.34"]
[White "Gerrits, Augustin"]
[Black "Jelicic, Hugo"]
[Result "1-0"]
[TimeControl "100+30+30sec/move"]
[WhiteTitle "-"]
[BlackTitle "-"]
[WhiteFideId "285358"]
[BlackFideId "1349040"]
[WhiteElo "2072"]
[BlackElo "1907"]

1. e4 {[%clk 01:40:50]} {[%emt 00:00:11]} c6 {[%clk 01:38:05]} {[%emt
00:02:55]} 2. d4 {[%clk 01:40:47]} {[%emt 00:00:33]} d5 {[%clk 01:38:26]}
{[%emt 00:00:09]} 3. Nc3 {[%clk 01:40:53]} {[%emt 00:00:23]} dxe4 {[%clk
01:38:40]} {[%emt 00:00:16]} 4. Nxe4 {[%clk 01:40:55]} {[%emt 00:00:28]} Bf5
{[%clk 01:38:56]} {[%emt 00:00:14]} 5. Ng3 {[%clk 01:40:50]} {[%emt 00:00:34]}
Bg6 {[%clk 01:39:23]} {[%emt 00:00:05]} 6. h4 {[%clk 01:40:46]} {[%emt
00:00:33]} h6 {[%clk 01:39:48]} {[%emt 00:00:06]} 7. Nf3 {[%clk 01:40:41]}
{[%emt 00:00:34]} Nd7 {[%clk 01:40:10]} {[%emt 00:00:09]} 8. h5 {[%clk
01:40:47]} {[%emt 00:00:23]} Bh7 {[%clk 01:40:34]} {[%emt 00:00:07]} 9. Bd3
{[%clk 01:40:36]} {[%emt 00:00:40]} Bxd3 {[%clk 01:40:57]} {[%emt 00:00:08]} 10.
Qxd3 {[%clk 01:40:30]} {[%emt 00:00:35]} e6 {[%clk 01:41:14]} {[%emt 00:00:14]}
11. Bd2 {[%clk 01:40:23]} {[%emt 00:00:36]} Ngf6 {[%clk 01:41:33]} {[%emt
00:00:11]} 12. O-O-O {[%clk 01:40:35]} {[%emt 00:00:19]} Be7 {[%clk 01:41:07]}
{[%emt 00:00:55]} 13. Ne4 {[%clk 01:38:26]} {[%emt 00:02:39]} Nxe4 {[%clk
01:36:36]} {[%emt 00:05:01]} 14. Qxe4 {[%clk 01:38:33]} {[%emt 00:00:23]} Nf6
{[%clk 01:36:47]} {[%emt 00:00:19]} 15. Qe2 {[%clk 01:38:26]} {[%emt 00:00:37]}
Qd5 {[%clk 01:35:15]} {[%emt 00:02:02]} 16. c4 {[%clk 01:38:22]} {[%emt
00:00:35]} Qe4 {[%clk 01:33:51]} {[%emt 00:01:54]} 17. Qxe4 {[%clk 01:38:30]}
{[%emt 00:00:21]} Nxe4 {[%clk 01:34:13]} {[%emt 00:00:08]} 18. Be3 {[%clk
01:38:35]} {[%emt 00:00:24]} f5 {[%clk 01:29:36]} {[%emt 00:05:08]} 19. Rhe1
{[%clk 01:38:18]} {[%emt 00:00:47]} O-O {[%clk 01:11:59]} {[%emt 00:18:08]} 20.
Kc2 {[%clk 01:37:50]} {[%emt 00:00:57]} Rae8 {[%clk 00:55:04]} {[%emt
00:17:25]} 21. Re2 {[%clk 01:25:36]} {[%emt 00:12:43]} Bd6 {[%clk 00:40:55]}
{[%emt 00:14:40]} 22. Nh4 {[%clk 01:18:07]} {[%emt 00:07:58]} Rf7 {[%clk
00:37:09]} {[%emt 00:04:17]} 23. Ng6 {[%clk 01:14:30]} {[%emt 00:04:08]} Nf6
{[%clk 00:36:40]} {[%emt 00:00:59]} 24. Bf4 {[%clk 01:11:42]} {[%emt 00:03:17]}
Rd7 {[%clk 00:33:26]} {[%emt 00:03:44]} 25. Bxd6 {[%clk 01:04:11]} {[%emt
00:08:00]} Rxd6 {[%clk 00:33:54]} {[%emt 00:00:03]} 26. Nf4 {[%clk 01:04:01]}
{[%emt 00:00:40]} Kf7 {[%clk 00:29:26]} {[%emt 00:04:58]} 27. f3 {[%clk
01:00:16]} {[%emt 00:04:15]} b5 {[%clk 00:23:43]} {[%emt 00:06:13]} 28. b3
{[%clk 00:46:01]} {[%emt 00:14:45]} bxc4 {[%clk 00:17:43]} {[%emt 00:06:30]} 29.
bxc4 {[%clk 00:46:24]} {[%emt 00:00:07]} c5 {[%clk 00:15:40]} {[%emt 00:02:33]}
30. dxc5 {[%clk 00:33:32]} {[%emt 00:13:22]} Rxd1 {[%clk 00:15:36]} {[%emt
00:00:35]} 31. Kxd1 {[%clk 00:33:57]} {[%emt 00:00:04]} e5 {[%clk 00:16:03]}
{[%emt 00:00:04]} 32. Ng6 {[%clk 00:34:02]} {[%emt 00:00:24]} e4 {[%clk
00:15:59]} {[%emt 00:00:34]} 33. Nf4 {[%clk 00:34:23]} {[%emt 00:00:09]} Rc8
{[%clk 00:15:33]} {[%emt 00:00:56]} 34. Rb2 {[%clk 00:32:34]} {[%emt 00:02:19]}
Nd7 {[%clk 00:03:41]} {[%emt 00:12:22]} 35. Rb7 {[%clk 00:31:54]} {[%emt
00:01:11]} Ke8 {[%clk 00:04:10]} 36. Rxa7 {[%clk 00:30:13]} {[%emt 00:02:11]}
exf3 {[%clk 00:00:45]} {[%emt 00:03:55]} 37. gxf3 {[%clk 00:30:20]} {[%emt
00:00:22]} Ne5 {[%clk 00:00:49]} {[%emt 00:00:26]} 38. Ne6 {[%clk 00:27:35]}
{[%emt 00:03:16]} Nxf3 {[%clk 00:00:44]} {[%emt 00:00:36]} 39. Nxg7+ {[%clk
00:27:10]} {[%emt 00:00:55]} Kd8 {[%clk 00:01:13]} 40. Ne6+ {[%clk 00:27:05]}
{[%emt 00:00:35]} Ke8 {[%clk 00:01:43]} 41. Ke2 {[%clk 00:25:59]} {[%emt
00:01:36]} Nh4 {[%clk 00:19:15]} {[%emt 00:12:57]} 42. Ke3 {[%clk 00:55:41]}
{[%emt 00:00:48]} Rc6 {[%clk 00:18:57]} {[%emt 00:00:49]} 43. Ng7+ {[%clk
00:55:52]} {[%emt 00:00:18]} Kf8 {[%clk 00:18:17]} {[%emt 00:01:10]} 44. Kd4
{[%clk 00:55:48]} {[%emt 00:00:34]} Kg8 {[%clk 00:12:00]} {[%emt 00:06:47]} 45.
Kd5 {[%clk 00:55:20]} {[%emt 00:00:58]} Rf6 {[%clk 00:12:29]} 46. Ke5 {[%clk
00:54:13]} {[%emt 00:01:37]} Rc6 {[%clk 00:11:58]} {[%emt 00:01:01]} 47. Ne6
{[%clk 00:54:38]} {[%emt 00:00:05]} f4 {[%clk 00:11:01]} {[%emt 00:01:27]} 48.
Kd5 {[%clk 00:54:35]} {[%emt 00:00:34]} Rc8 {[%clk 00:07:57]} {[%emt 00:03:34]}
49. Nxf4 {[%clk 00:55:00]} {[%emt 00:00:04]} Nf5 {[%clk 00:07:56]} {[%emt
00:00:30]} 50. c6 {[%clk 00:54:31]} {[%emt 00:01:00]} 1-0

[Event "Masters Tournament (MTO)"]
[Site "Biel, Switzerland"]
[Date "2026.07.21"]
[Round "8.36"]
[White "Hornung, Hans"]
[Black "Morrison, Joseph"]
[Result "1-0"]
[TimeControl "100+30+30sec/move"]
[WhiteTitle "-"]
[BlackTitle "-"]
[WhiteFideId "4615140"]
[BlackFideId "479535"]
[WhiteElo "1924"]
[BlackElo "2048"]

1. c4 {[%clk 01:39:43]} {[%emt 00:01:06]} e5 {[%clk 01:40:51]} {[%emt
00:00:21]} 2. Nc3 {[%clk 01:39:58]} {[%emt 00:00:13]} Nf6 {[%clk 01:41:19]}
{[%emt 00:00:03]} 3. Nf3 {[%clk 01:40:17]} {[%emt 00:00:08]} Nc6 {[%clk
01:41:46]} {[%emt 00:00:05]} 4. a3 {[%clk 01:40:04]} {[%emt 00:00:44]} d5
{[%clk 01:41:09]} {[%emt 00:01:06]} 5. cxd5 {[%clk 01:40:23]} {[%emt 00:00:12]}
Nxd5 {[%clk 01:41:34]} {[%emt 00:00:06]} 6. Qc2 {[%clk 01:40:38]} {[%emt
00:00:13]} Be7 {[%clk 01:34:26]} {[%emt 00:07:39]} 7. e3 {[%clk 01:36:34]}
{[%emt 00:04:34]} a6 {[%clk 01:32:15]} {[%emt 00:02:41]} 8. Be2 {[%clk
01:36:34]} {[%emt 00:00:29]} f5 {[%clk 01:27:04]} {[%emt 00:05:42]} 9. d4
{[%clk 01:25:22]} {[%emt 00:11:41]} exd4 {[%clk 01:21:43]} {[%emt 00:05:52]} 10.
exd4 {[%clk 01:25:36]} {[%emt 00:00:15]} Bf6 {[%clk 01:17:18]} {[%emt
00:04:54]} 11. O-O {[%clk 01:23:10]} {[%emt 00:02:56]} Nb6 {[%clk 00:58:55]}
{[%emt 00:18:55]} 12. d5 {[%clk 01:17:01]} {[%emt 00:06:38]} Ne7 {[%clk
00:57:27]} {[%emt 00:01:58]} 13. Rd1 {[%clk 00:59:10]} {[%emt 00:18:21]} Qd6
{[%clk 00:42:57]} {[%emt 00:15:02]} 14. Be3 {[%clk 00:53:07]} {[%emt 00:06:32]}
O-O {[%clk 00:41:25]} {[%emt 00:02:01]} 15. Rac1 {[%clk 00:49:07]} {[%emt
00:04:29]} Bd7 {[%clk 00:39:29]} {[%emt 00:02:26]} 16. b4 {[%clk 00:46:58]}
{[%emt 00:02:40]} Rac8 {[%clk 00:31:12]} {[%emt 00:08:48]} 17. Qa2 {[%clk
00:33:18]} {[%emt 00:14:10]} Kh8 {[%clk 00:20:15]} {[%emt 00:11:27]} 18. Bc5
{[%clk 00:31:24]} {[%emt 00:02:22]} Qf4 {[%clk 00:20:35]} {[%emt 00:00:11]} 19.
d6 {[%clk 00:25:39]} {[%emt 00:06:16]} cxd6 {[%clk 00:19:20]} {[%emt 00:01:45]}
20. Be3 {[%clk 00:23:45]} {[%emt 00:02:23]} Qg4 {[%clk 00:13:10]} {[%emt
00:06:41]} 21. Ng5 {[%clk 00:18:49]} {[%emt 00:05:25]} Qh4 {[%clk 00:12:05]}
{[%emt 00:01:35]} 22. g3 {[%clk 00:18:30]} {[%emt 00:00:49]} Qxg5 {[%clk
00:10:47]} {[%emt 00:01:48]} 23. Bxg5 {[%clk 00:18:50]} {[%emt 00:00:09]} Bxg5
{[%clk 00:11:16]} {[%emt 00:00:02]} 24. Rc2 {[%clk 00:16:59]} {[%emt 00:02:21]}
d5 {[%clk 00:09:06]} {[%emt 00:02:40]} 25. Bf3 {[%clk 00:12:04]} {[%emt
00:05:25]} Bc6 {[%clk 00:08:19]} {[%emt 00:01:17]} 26. a4 {[%clk 00:10:44]}
{[%emt 00:01:50]} Rfd8 {[%clk 00:07:59]} {[%emt 00:00:50]} 27. b5 {[%clk
00:10:09]} {[%emt 00:01:05]} Be8 {[%clk 00:08:08]} {[%emt 00:00:22]} 28. a5
{[%clk 00:08:19]} {[%emt 00:02:20]} Nd7 {[%clk 00:06:44]} {[%emt 00:01:54]} 29.
bxa6 {[%clk 00:08:07]} {[%emt 00:00:41]} bxa6 {[%clk 00:06:58]} {[%emt
00:00:17]} 30. Nxd5 {[%clk 00:07:16]} {[%emt 00:01:20]} Ne5 {[%clk 00:07:17]}
{[%emt 00:00:11]} 31. Bg2 {[%clk 00:06:58]} {[%emt 00:00:47]} Bc6 {[%clk
00:07:05]} {[%emt 00:00:43]} 32. f4 {[%clk 00:06:32]} {[%emt 00:00:57]} 1-0